[Event "Summer Chess Classic-B 2022"]
[Site "Saint Louis"]
[Date "2022.06.02"]
[Round "1.1"]
[White "Dragun, Kamil"]
[Black "Zhou, Jianchao"]
[Result "1-0"]
[ECO "B47"]
[WhiteElo "2571"]
[BlackElo "2589"]
[Annotator "TA"]
[PlyCount "51"]
[EventDate "2022.05.31"]
[EventType "tourn"]
[EventCountry "USA"]
[SourceTitle "playchess.com"]
[Source "ChessBase"]
[SourceQuality "1"]
[TimeControl "40/5400+30:1800+30"]

{[%evp 17,51,18,12,0,27,-4,0,0,0,0,0,0,0,0,11,27,21,22,10,13,67,100,154,165,160,156,441,431,445,442,394,197,800,776,781,763]} 1. e4 {[%emt 0:00:04]} c5 {[%emt 0:00:17]} 2. Nf3 {[%emt 0:00:09]} e6 {[%emt 0:01:00]} 3. d4 {[%emt 0:00:22]} cxd4 {[%emt 0:00:06]} 4. Nxd4 {[%emt 0:00:07]} Nc6 {[%emt 0:00:07]} 5. Nc3 {[%emt 0:00:32]} Qc7 {[%emt 0:00:07]} 6. g3 {[%emt 0:00:39]} a6 {[%emt 0:00:16]} 7. Bg2 {[%emt 0:00:24]} Nf6 {[%emt 0:00:07]} 8. O-O {[%emt 0:00:27]} Bc5 {[%emt 0:00:06]} 9. Nb3 {[%emt 0:07:41]} Ba7 {[%emt 0:00:57]} 10. Kh1 {[%emt 0:08:39] [#] B47: Sicilian: Taimanov: 5 Nc3 Qc7 6 f4, 6 g3 and 6 Be2.} h6 $146 {[%emt 0:03:57]} ({Predecessor:} 10... d6 11. f4 h5 12. Qe2 Ng4 13. Nd1 Bd7 14. c3 Ne7 15. a4 b5 16. a5 Qc4 17. Qxc4 bxc4 {0-1 (84) Pridorozhni,A (2580)-Radzhabov,R (2344) Khanty-Mansiysk 2021}) 11. f4 {[%emt 0:03:41][%cal Bf2f4,Bf4e5][%mdl 32]} (11. Bf4 $5 {[%cal Rf4c7]} e5 12. Be3 $11) 11... d6 {[%emt 0:01:04] Against e5} 12. Qe2 {[%emt 0:00:57][%cal Oe4e5] The position is equal.} O-O {[%emt 0:02:25]} 13. Bd2 {[%emt 0:07:18]} b5 {[%emt 0:17:09]} 14. e5 {[%emt 0:17:41]} dxe5 {[%emt 0:09:17]} 15. fxe5 {[%emt 0:00:15]} Nh7 {[%emt 0:00:43]} 16. a4 {[%emt 0:14:51]} bxa4 {[%emt 0:03:22]} 17. Rxa4 {[%emt 0:02:06] Strongly threatening Rc4.} Bb7 $1 {[%emt 0:00:28]} 18. Rc4 {[%emt 0:03:16]} Rac8 {[%emt 0:02:31]} ({Black should play} 18... Rad8 $1 $11) 19. Ne4 $1 $14 {[%emt 0:02:51][%cal Ob3a5,Bc3e4,Be4d6,Bd6c8][%mdl 32] aiming for Na5!} Qxe5 {[%emt 0:05:18]} (19... Qd7 $142) 20. Bc3 $36 {[%emt 0:00:42][%mdl 2048] White is really pushing.} Qb8 {[%emt 0:37:07]} 21. Nbc5 {[%emt 0:05:04] 0x0.002a998f8eabdp-1022s more active pieces. The black rooks are badly placed.} Rc7 {[%emt 0:06:27] [#] Against Nd7. A mistake that costs the game.} (21... Bxc5 $16 22. Nxc5 Qc7) 22. Nxb7 $18 {[%emt 0:11:36]} Qxb7 {[%emt 0:00:03]} 23. Nd6 {[%emt 0:00:08]} Qb6 {[%emt 0:00:30]} 24. Rg4 {[%emt 0:00:32]} ({Resist} 24. Qg4 f6 25. Qxe6+ Kh8 26. Bxc6 Rxc6 $18) (24. Qh5 $142) 24... g5 $2 {[%emt 0:04:40]} (24... Ng5) 25. Rc4 {[%emt 0:02:50]} Nd8 {[%emt 0:00:41]} 26. Nc8 {[%emt 0:01:37] Weighted Error Value: White=0.13 (very precise) /Black=0.33} ({Not} 26. Qe5 f6 27. Qa5 Qxa5 28. Bxa5 Rd7 $16) 1-0

[Event "Summer Chess Classic-B 2022"]
[Site "Saint Louis"]
[Date "2022.06.02"]
[Round "1.2"]
[White "Ali Marandi, Cemil Can"]
[Black "Yoo, Christopher Woojin"]
[Result "1/2-1/2"]
[ECO "E42"]
[WhiteElo "2532"]
[BlackElo "2535"]
[Annotator "TA"]
[PlyCount "80"]
[EventDate "2022.05.31"]
[EventType "tourn"]
[EventCountry "USA"]
[SourceTitle "playchess.com"]
[Source "ChessBase"]
[SourceQuality "1"]
[TimeControl "40/5400+30:1800+30"]

{[%evp 9,80,14,37,14,43,38,38,31,35,44,56,55,47,37,62,62,71,81,67,58,67,47,57,16,22,6,44,45,48,40,42,41,36,27,29,28,29,28,28,29,31,16,20,0,0,-8,0,-7,0,0,0,0,0,0,0,-59,-59,-59,-59,-59,-59,-59,-59,-59,-59,-59,-59,-59,-59,-59,0,-60,0]} 1. d4 {[%emt 0:00:03]} Nf6 {[%emt 0:00:20]} 2. c4 {[%emt 0:00:05]} e6 {[%emt 0:00:37]} 3. Nc3 {[%emt 0:00:07]} Bb4 {[%emt 0:00:54]} 4. e3 {[%emt 0:00:09]} c5 {[%emt 0:02:17]} 5. Nge2 {[%emt 0:00:12][%cal Bg1e2,Be2c1,Bc1d3][%mdl 32]} d6 {[%emt 0:00:39]} (5... d5 {feels hotter.} 6. cxd5 Nxd5 7. Bd2 cxd4 8. Nxd5 Bxd2+ 9. Qxd2 Qxd5 10. Qxd4 Qxd4 11. Nxd4 Bd7) 6. dxc5 {[%emt 0:00:11] E42: Nimzo-Indian: Rubinstein: 4...c5 5 Ne2.} dxc5 {[%emt 0:01:15]} (6... Bxc5 {with more complications.} 7. Nf4 e5 8. Nfd5 Nxd5 9. Nxd5 a5) 7. Qxd8+ {[%emt 0:00:10]} Kxd8 {[%emt 0:00:05]} 8. Bd2 {[%emt 0:00:11] White is slightly better.} Nc6 {[%emt 0:02:13]} 9. a3 {[%emt 0:00:07]} Ba5 {[%emt 0:01:04] [#]} 10. Nc1 $146 {[%emt 0:00:10]} ({Predecessor:} 10. Ng3 Ke7 11. Be2 Rd8 12. O-O-O Bd7 13. Kc2 Be8 14. Nce4 Nxe4 15. Nxe4 Bxd2 16. Rxd2 Rxd2+ 17. Kxd2 {½-½ (73) Cramling,P (2459)-Blomqvist,E (2535) Helsingborg 2021}) 10... Rg8 {[%emt 0:20:36]} 11. f3 {[%emt 0:01:53]} b6 {[%emt 0:01:33]} 12. Nd3 {[%emt 0:01:27]} e5 {[%emt 0:05:09]} 13. Rb1 {[%emt 0:09:41] [#] Strongly threatening b4.} Bxc3 {[%emt 0:12:30]} 14. Bxc3 {[%emt 0:00:09]} Re8 {[%emt 0:00:09]} 15. Kf2 {[%emt 0:02:18]} (15. b4 {keeps more tension.} e4 16. Nf4 exf3 17. Bxf6+ gxf6 18. Kf2) 15... a5 {[%emt 0:06:10]} 16. b3 {[%emt 0:03:45]} Kc7 {[%emt 0:03:50]} 17. Rc1 {[%emt 0:05:17]} Ba6 {[%emt 0:02:41]} 18. Nb2 {[%emt 0:08:17]} Rad8 {[%emt 0:04:16]} 19. Be2 {[%emt 0:01:37]} Bc8 {[%emt 0:02:17]} 20. Rhd1 {[%emt 0:01:28]} Be6 {[%emt 0:00:32]} 21. Rxd8 {[%emt 0:03:25]} Rxd8 {[%emt 0:00:29]} 22. Rd1 {[%emt 0:05:45]} Rxd1 {[%emt 0:03:54]} 23. Bxd1 {[%emt 0:00:21]} Ne8 {[%emt 0:00:31]} 24. Bc2 {[%emt 0:01:55]} h6 {[%emt 0:03:24]} 25. Be4 {[%emt 0:03:04]} f6 $1 {[%emt 0:00:12]} 26. Bxc6 {[%emt 0:00:53]} Kxc6 $11 {[%emt 0:00:04][%mdl 4096] Endgame KBN-KBN} 27. a4 {[%emt 0:00:48]} Nc7 {[%emt 0:02:59]} 28. Nd3 {[%emt 0:02:08]} Kd6 {[%emt 0:00:50]} 29. e4 {[%emt 0:03:04]} g5 {[%emt 0:06:52]} 30. g3 {[%emt 0:01:51]} Ke7 {[%emt 0:00:10]} 31. Ke3 {[%emt 0:01:39]} Bd7 {[%emt 0:02:15]} 32. g4 {[%emt 0:10:04]} (32. f4 $11) 32... Ne6 $15 {[%emt 0:00:33]} 33. Bb2 {[%emt 0:00:30]} Be8 {[%emt 0:00:54]} 34. Bc3 {[%emt 0:02:01]} h5 {[%emt 0:00:24]} 35. h3 {[%emt 0:00:26]} h4 {[%emt 0:00:24]} 36. Bb2 {[%emt 0:00:34]} Bd7 {[%emt 0:00:21]} 37. Bc3 {[%emt 0:00:41]} Bc6 {[%emt 0:00:16]} 38. Bb2 {[%emt 0:00:17]} Be8 {[%emt 0:00:48]} 39. Bc3 {[%emt 0:00:12]} Bc6 {[%emt 0:00:28]} 40. Bb2 $1 {[%emt 0:00:07]} Bd7 {[%emt 0:00:06] Weighted Error Value: White=0.08 (flawless) /Black=0.05 (flawless)} ({Black should try} 40... Kd6 $15) 1/2-1/2

[Event "Summer Chess Classic-B 2022"]
[Site "Saint Louis"]
[Date "2022.06.02"]
[Round "1.3"]
[White "Vazquez, Guillermo"]
[Black "Antipov, Mikhail Al."]
[Result "1/2-1/2"]
[ECO "D00"]
[WhiteElo "2557"]
[BlackElo "2592"]
[Annotator "TA"]
[PlyCount "131"]
[EventDate "2022.05.31"]
[EventType "tourn"]
[EventCountry "USA"]
[SourceTitle "playchess.com"]
[Source "ChessBase"]
[SourceQuality "1"]
[TimeControl "40/5400+30:1800+30"]

{[%evp 9,131,0,0,0,0,-12,5,0,18,27,17,22,32,29,32,23,15,41,44,35,56,29,45,0,31,30,41,14,25,0,0,0,0,-3,0,0,0,0,0,0,4,0,15,14,14,2,5,3,20,22,26,0,10,0,0,0,10,0,37,22,23,22,23,13,15,27,31,0,3,0,0,0,7,0,0,0,0,0,22,22,22,0,0,0,0,0,0,0,0,0,0,0,0,0,0,0,0,0,0,0,0,0,0,0,0,0,0,0,0,0,0,0,0,0,0,0,0,0,0,0,0,0,0,0]} 1. d4 {[%emt 0:00:09]} Nf6 {[%emt 0:00:05]} 2. Nf3 {[%emt 0:00:16]} g6 {[%emt 0:00:04]} 3. Nc3 {[%emt 0:00:49]} d5 {[%emt 0:00:08]} 4. Bf4 {[%emt 0:00:22]} Bg7 {[%emt 0:01:17]} 5. e3 {[%emt 0:00:37]} O-O {[%emt 0:01:50][%cal Oc7c5]} 6. Nb5 {[%emt 0:00:16] D00: 1 d4 d5: Unusual lines.} Na6 {[%emt 0:00:53]} 7. h3 {[%emt 0:00:20]} c6 {[%emt 0:09:13]} 8. Nc3 {[%emt 0:01:07]} c5 {[%emt 0:02:38]} 9. Bxa6 {[%emt 0:01:47]} bxa6 {[%emt 0:00:01]} 10. Be5 {[%emt 0:01:23] [#]} Ne4 $146 {[%emt 0:10:33]} ({Predecessor:} 10... cxd4 11. exd4 Bf5 12. O-O Ne4 13. Ne2 Rc8 14. Nc1 Qb6 15. Nb3 Nd6 16. c3 Nc4 17. Bxg7 Kxg7 {½-½ (60) Rapport,J (2334)-Banzea,A (2278) Zalakaros 2017}) 11. Bxg7 {[%emt 0:03:58]} Nxc3 {[%emt 0:01:40]} 12. Qd3 {[%emt 0:09:43]} Kxg7 {[%emt 0:00:25]} 13. Qxc3 {[%emt 0:01:07]} cxd4 {[%emt 0:00:51]} 14. Nxd4 {[%emt 0:08:02] [#] Threatening mate with Nf5+.} (14. Qxd4+ f6 $11) 14... f6 {[%emt 0:02:28]} 15. f4 {[%emt 0:12:02]} Qb6 {[%emt 0:02:31]} 16. O-O {[%emt 0:03:42]} Bf5 {[%emt 0:12:35][%cal Bc8f5,Bf5e4,Be4d5][%mdl 32]} 17. Qb3 {[%emt 0:10:41]} Rad8 {[%emt 0:11:50]} 18. Rf2 {[%emt 0:02:26]} Rd6 {[%emt 0:03:12]} 19. c4 {[%emt 0:09:48]} Be4 {[%emt 0:08:46]} 20. cxd5 {[%emt 0:04:32]} Bxd5 {[%emt 0:08:16]} ({Don't do} 20... Rxd5 21. Qxb6 axb6 22. Ne6+ Kg8 23. Nxf8 Kxf8 24. b3 $16) 21. Qc3 {[%emt 0:00:48]} Bb7 {[%emt 0:08:25]} 22. Rc1 {[%emt 0:00:21]} Rc8 {[%emt 0:01:00]} 23. Qe1 {[%emt 0:00:14]} Rxc1 {[%emt 0:08:57]} 24. Qxc1 {[%emt 0:00:03]} Bd5 {[%emt 0:00:36]} 25. a3 {[%emt 0:01:39]} e5 {[%emt 0:00:54]} 26. fxe5 {[%emt 0:04:53]} fxe5 {[%emt 0:00:01]} 27. Nf3 {[%emt 0:00:37]} ({But not} 27. Qc8 $2 Rd8 28. Nf5+ gxf5 $19) 27... Bxf3 {[%emt 0:00:38]} 28. Rxf3 $11 {[%emt 0:00:39][%mdl 4096] Endgame KQR-KQR} Rd7 {[%emt 0:01:09]} 29. Qc4 {[%emt 0:02:58]} Qd6 {[%emt 0:00:45]} 30. b4 {[%emt 0:00:36]} h5 {[%emt 0:00:32]} 31. Qe4 {[%emt 0:02:20]} Qd5 {[%emt 0:01:26]} 32. Qh4 {[%emt 0:00:12]} Qd6 {[%emt 0:01:19] Against Qf6+} 33. Qc4 {[%emt 0:00:40]} Qd1+ {[%emt 0:00:35]} 34. Kh2 {[%emt 0:00:58] [#] Hoping for Qe6.} Qd6 {[%emt 0:00:05] Against Qe6} 35. e4 {[%emt 0:00:33]} Rc7 {[%emt 0:00:26]} 36. Qb3 {[%emt 0:00:27]} Qc6 {[%emt 0:00:34]} 37. Qe3 {[%emt 0:00:17]} Rd7 {[%emt 0:01:01]} 38. Qg5 {[%emt 0:00:58]} Qxe4 {[%emt 0:01:08] The position is equal.} 39. Qf6+ {[%emt 0:01:05]} Kh7 {[%emt 0:00:05]} 40. Qxa6 {[%emt 0:03:43]} Qd5 {[%emt 0:00:50]} 41. Rf6 {[%emt 0:32:27]} (41. Rf8 {seems wilder.} Rf7 42. Rc8 Kh6 43. Qe2) 41... e4 {[%emt 0:14:31] White must now prevent ...Qe5+.} 42. Qe6 {[%emt 0:00:00] Inhibits Qe5+.} Qxe6 {[%emt 0:01:40]} 43. Rxe6 {[%emt 0:00:00] KR-KR} a5 {[%emt 0:01:28]} 44. Rxe4 {[%emt 0:00:00]} ({Don't take} 44. bxa5 Rd4 $16) 44... Rd3 {[%emt 0:00:44]} 45. bxa5 {[%emt 0:00:00]} (45. a4 $5 {[%cal Rb4a5]}) 45... Rxa3 {[%emt 0:00:15]} 46. Re5 {[%emt 0:00:00] And now h4 would win.} h4 {[%emt 0:00:48]} 47. Kg1 {[%emt 0:00:00]} Ra2 {[%emt 0:00:31]} 48. Re7+ {[%emt 0:00:00]} Kh6 {[%emt 0:00:06]} 49. Ra7 {[%emt 0:00:00]} Kg5 {[%emt 0:02:38]} 50. a6 {[%emt 0:00:00]} Kh6 {[%emt 0:02:00]} 51. Ra8 {[%emt 0:00:00]} Kg7 {[%emt 0:04:19]} 52. a7 {[%emt 0:00:00]} Kh7 {[%emt 0:00:18]} 53. Kf1 {[%emt 0:00:00]} Kg7 {[%emt 0:00:10]} 54. Ke1 {[%emt 0:00:00]} Kh7 {[%emt 0:00:13]} 55. Kd1 {[%emt 0:00:00]} Kg7 {[%emt 0:00:06]} 56. Kc1 {[%emt 0:00:00]} Kh7 {[%emt 0:00:05]} 57. Kb1 {[%emt 0:00:00]} Ra6 {[%emt 0:00:05]} 58. Kb2 {[%emt 0:00:00]} Kg7 {[%emt 0:00:07]} 59. Kc3 {[%emt 0:00:00]} Ra4 {[%emt 0:00:07]} 60. Kb3 {[%emt 0:00:00]} Ra1 {[%emt 0:00:05]} 61. Kc4 {[%emt 0:00:00]} Ra4+ {[%emt 0:00:13]} 62. Kd5 {[%emt 0:00:00]} Ra1 {[%emt 0:01:25]} 63. Ke4 {[%emt 0:00:00]} Ra4+ {[%emt 0:00:10]} 64. Ke5 {[%emt 0:00:00]} Ra1 {[%emt 0:00:16]} 65. Kf4 {[%emt 0:00:00]} Ra2 {[%emt 0:00:06]} 66. Kf3 {[%emt 0:00:00] Weighted Error Value: White=0.06 (flawless) /Black=0.05 (flawless)} 1/2-1/2

[Event "Summer Chess Classic-B 2022"]
[Site "Saint Louis"]
[Date "2022.06.02"]
[Round "1.4"]
[White "Checa, Nicolas"]
[Black "Jacobson, Brandon"]
[Result "0-1"]
[ECO "E95"]
[WhiteElo "2533"]
[BlackElo "2526"]
[Annotator "TA"]
[PlyCount "78"]
[EventDate "2022.05.31"]
[EventType "tourn"]
[EventCountry "USA"]
[SourceTitle "playchess.com"]
[Source "ChessBase"]
[SourceQuality "1"]
[TimeControl "40/5400+30:1800+30"]

{[%evp 16,78,64,37,50,28,38,31,47,43,44,44,41,20,20,20,20,20,25,0,6,0,0,8,0,0,11,0,0,0,0,0,0,0,100,74,79,-37,-40,-543,-540,-477,-495,-641,-612,-1128,-1077,-29985,-29986,-29986,-29987,-29989,-29990,-29993,-29994,-29997,-29993,-29993,-29994,-29994,-29995,-29995,-29996,-29996,-29997]} 1. d4 {[%emt 0:00:03]} Nf6 {[%emt 0:00:08]} 2. c4 {[%emt 0:00:04]} g6 {[%emt 0:00:07]} 3. Nc3 {[%emt 0:00:07]} Bg7 {[%emt 0:00:06]} 4. e4 {[%emt 0:00:09]} d6 {[%emt 0:00:06]} 5. Nf3 {[%emt 0:00:05]} O-O {[%emt 0:00:07]} 6. Be2 {[%emt 0:00:06]} e5 {[%emt 0:00:06]} 7. O-O {[%emt 0:00:06]} h6 {[%emt 0:00:05]} 8. Re1 {[%emt 0:04:20]} Nbd7 {[%emt 0:00:07]} 9. Bf1 {[%emt 0:03:11]} Re8 {[%emt 0:00:06] E95: King's Indian: Classical: 7...Nbd7 8 Re1.} 10. Rb1 {[%emt 0:08:46]} exd4 {[%emt 0:00:06]} 11. Nxd4 {[%emt 0:00:09]} c6 {[%emt 0:00:03] [#] White is slightly better.} 12. Bf4 $146 {[%emt 0:06:40]} ({Predecessor:} 12. f3 a6 13. Be3 Ne5 14. Qd2 Kh7 15. Rbd1 b5 16. cxb5 cxb5 17. Nc2 Bf8 18. Nb4 {0-1 (34) Ghaffarifar,M (2131)-Ghaem Maghami,E (2596) Hamedan 2015}) 12... Ne5 {[%emt 0:00:14]} 13. f3 {[%emt 0:02:36]} a6 {[%emt 0:01:29]} 14. Qd2 {[%emt 0:08:05]} g5 {[%emt 0:01:19]} 15. Be3 {[%emt 0:00:12]} b5 {[%emt 0:02:25]} 16. b3 {[%emt 0:02:10]} Nh5 {[%emt 0:10:21]} 17. Nf5 {[%emt 0:02:56]} b4 {[%emt 0:00:20]} 18. Na4 {[%emt 0:14:50]} (18. Nxg7 bxc3 19. Qxc3 Nxg7 $17) 18... Bxf5 {[%emt 0:00:20]} 19. exf5 {[%emt 0:00:02]} g4 {[%emt 0:10:59]} 20. f4 {[%emt 0:06:23]} (20. Qxb4 gxf3 21. c5 fxg2 $17) 20... g3 $1 {[%emt 0:01:30]} 21. h3 {[%emt 0:04:47]} (21. Qxb4 $2 gxh2+ 22. Kf2 Ng4+ 23. Ke2 h1=Q $19) 21... Ng4 {[%emt 0:18:16][%cal Od8f6]} 22. Bb6 {[%emt 0:07:35]} (22. hxg4 $2 Qh4 23. Be2 Qh2+ 24. Kf1 Nxf4 $1 $19 {[%mdl 512]}) 22... Qh4 {[%emt 0:01:09][%cal Oc6c5] ...c5! is the strong threat.} 23. Qxd6 {[%emt 0:03:48]} Red8 $1 {[%emt 0:19:16] Chess con chili.} 24. Qxc6 {[%emt 0:02:00] Hoping for Be2.} (24. Bxd8 Rxd8 25. Qd3 (25. Qe7 Bd4+) 25... Rxd3 26. Re8+ Kh7 27. Bxd3 Bd4+ 28. Kf1 Ne5 $1 $19 {[%mdl 512]}) 24... Nxf4 {[%emt 0:04:33]} 25. Rbd1 $1 $16 {[%emt 0:02:24]} Rdc8 {[%emt 0:00:58]} 26. Qd6 {[%emt 0:03:10]} (26. Bc7 $16 Nf2 27. Qf3 Nxd1 28. Rxd1) 26... Nf2 $15 {[%emt 0:01:33]} 27. c5 $2 {[%emt 0:06:20][%mdl 8192] [#] White does not recover from this.} Re8 $1 $19 {[%emt 0:15:31]} 28. Rxe8+ {[%emt 0:05:58]} Rxe8 {[%emt 0:00:02][%cal Ba8e8,Be8e7,Be7e1,Be1d1,Bd1d3][%mdl 32]} 29. Qd7 {[%emt 0:01:15]} Re7 {[%emt 0:05:17]} 30. Qd8+ {[%emt 0:02:33]} Kh7 {[%emt 0:00:03]} 31. c6 {[%emt 0:02:22]} N2xh3+ {[%emt 0:01:21] Black mates.} (31... Nxd1 32. Qxd1 (32. c7 {gets mated.} Re1) 32... Qf6 33. c7 Qxf5 34. Qc1 Ne2+ 35. Bxe2 Rxe2 36. Qf1 (36. c8=R $2 Qxc8 37. Qd1 Rxa2 $19) 36... Qxf1+ 37. Kxf1 $17) 32. gxh3 {[%emt 0:00:11]} g2 {[%emt 0:00:03]} 33. Bxg2 {[%emt 0:01:40]} Re1+ {[%emt 0:04:31]} 34. Kh2 {[%emt 0:00:32] [#]} Be5 $1 {[%emt 0:00:05][%cal Rf4e2]} 35. Bd4 {[%emt 0:01:45]} (35. Qg8+ Kxg8) 35... Qxd8 {[%emt 0:01:34]} 36. Bxe5 {[%emt 0:00:26]} Rxd1 {[%emt 0:00:17]} 37. Bxf4 {[%emt 0:00:29]} Qd4 {[%emt 0:00:06][%cal Rd4f4]} 38. Kg3 {[%emt 0:00:38]} Rd3+ {[%emt 0:00:07]} 39. Kg4 {[%emt 0:00:03]} Qg7+ {[%emt 0:00:04] Weighted Error Value: White=0.69/Black=0.07 (flawless)} 0-1

[Event "Summer Chess Classic-B 2022"]
[Site "Saint Louis"]
[Date "2022.06.02"]
[Round "1.5"]
[White "Burke, John M"]
[Black "Harutyunyan, Tigran K."]
[Result "1/2-1/2"]
[ECO "C65"]
[WhiteElo "2579"]
[BlackElo "2550"]
[Annotator "TA"]
[PlyCount "95"]
[EventDate "2022.05.31"]
[EventType "tourn"]
[EventCountry "USA"]
[SourceTitle "playchess.com"]
[Source "ChessBase"]
[SourceQuality "1"]
[TimeControl "40/5400+30:1800+30"]

{[%evp 9,95,13,18,13,13,13,20,0,13,18,12,17,8,21,10,13,18,16,16,18,25,21,19,15,14,20,10,12,19,22,90,90,94,88,109,110,108,108,116,91,118,105,105,91,98,28,8,15,26,43,42,36,57,0,0,0,0,0,0,0,0,0,0,0,15,0,0,0,0,0,0,0,0,0,0,0,0,0,0,0,0,0,0,0,0,0,0,0]} 1. e4 {[%emt 0:00:03]} e5 {[%emt 0:00:29]} 2. Nf3 {[%emt 0:00:09]} Nc6 {[%emt 0:00:09]} 3. Bb5 {[%emt 0:00:20]} Nf6 {[%emt 0:00:35]} 4. d3 {[%emt 0:00:32]} Bc5 {[%emt 0:01:24]} 5. Nbd2 {[%emt 0:00:31]} Nd4 {[%emt 0:03:17]} 6. Nxd4 {[%emt 0:01:29] C65: Ruy Lopez: Berlin Defence (3...Nf6), unusual lines and 4 0-0 Bc5.} Bxd4 {[%emt 0:00:08]} 7. c3 {[%emt 0:01:51]} Bb6 {[%emt 0:01:56]} 8. d4 {[%emt 0:01:29]} c6 {[%emt 0:03:42]} 9. dxe5 {[%emt 0:02:21] [#] aiming for Be2.} cxb5 {[%emt 0:00:17]} 10. exf6 {[%emt 0:00:04]} Qxf6 {[%emt 0:00:21][%csl Gb6][%cal Rf6f2]} 11. O-O {[%emt 0:01:57][%cal Oe4e5]} O-O {[%emt 0:03:11]} 12. Nf3 {[%emt 0:04:14]} d6 {[%emt 0:01:36] Against e5} 13. Re1 {[%emt 0:01:38]} Bg4 {[%emt 0:16:33]} 14. Be3 {[%emt 0:02:15]} b4 {[%emt 0:01:09]} 15. Bxb6 {[%emt 0:06:22]} axb6 {[%emt 0:00:26]} 16. cxb4 {[%emt 0:00:53]} Qxb2 {[%emt 0:07:47] [#]} 17. Qxd6 $146 {[%emt 0:03:03]} ({Predecessor:} 17. Qd4 Rxa2 18. Rxa2 Qxa2 19. Nh4 Qe6 20. h3 Qe7 21. hxg4 Qxh4 22. Qd5 Qe7 23. Rd1 {½-½ (30) Van Foreest,J (2714)-Giri,A (2773) Oslo 2022}) 17... Bxf3 {[%emt 0:10:45]} 18. gxf3 {[%emt 0:00:06]} b5 {[%emt 0:06:04]} 19. Red1 {[%emt 0:08:38]} Rxa2 {[%emt 0:16:51]} (19... Ra3 $11 {remains equal.}) 20. Rxa2 $16 {[%emt 0:00:08]} Qxa2 $11 {[%emt 0:00:04][%mdl 4096] Endgame KQR-KQR} 21. Kg2 {[%emt 0:08:59]} h6 {[%emt 0:01:00]} 22. Qc5 {[%emt 0:07:39] White is more active.} Ra8 {[%emt 0:04:10]} 23. h4 {[%emt 0:05:47][%cal Bh2h4,Bh4h5][%mdl 32]} (23. Qxb5 Ra6 $14) 23... Qe6 {[%emt 0:06:25]} 24. h5 {[%emt 0:06:30] Against Qg6+} ({Much less strong is} 24. Qxb5 Qg6+ 25. Kf1 Ra3 $11) 24... Qf6 {[%emt 0:03:54]} 25. Rd6 {[%emt 0:06:19]} Qh4 {[%emt 0:02:26]} 26. Qd5 {[%emt 0:05:00] Inhibits Ra2.} ({But not} 26. Qxb5 $6 Ra1 27. Qe8+ Kh7 28. Rxh6+ (28. Qxf7 $2 Qh1+ 29. Kg3 Rg1+ 30. Kf4 Qh2+ 31. Ke3 Re1+ 32. Kd2 Qxf2+ 33. Kd3 Rd1+ 34. Kc3 Qe1+ 35. Kb3 Qe3+ 36. Ka4 Qa7+ 37. Kb3 Rxd6 $19) 28... gxh6 $11) 26... Qf4 {[%emt 0:02:01]} (26... Ra1 $2 27. Rd8+ Qxd8 28. Qxd8+ $18) 27. Rb6 {[%emt 0:12:16]} (27. Rd8+ $16 Rxd8 28. Qxd8+ Kh7 29. Qd5) 27... Ra3 {[%emt 0:04:05]} 28. Qf5 {[%emt 0:02:35]} Qxf5 {[%emt 0:00:42]} 29. exf5 {[%emt 0:00:04] KR-KR} Rd3 {[%emt 0:00:07]} 30. Rxb5 {[%emt 0:01:39]} Rd7 {[%emt 0:00:02]} 31. Kg3 {[%emt 0:03:09]} ({White should try} 31. f4 $14) 31... f6 $1 {[%emt 0:00:32] The position is equal.} 32. Kf4 {[%emt 0:00:36]} Re7 {[%emt 0:00:22]} 33. Rc5 {[%emt 0:01:33]} Kf7 {[%emt 0:00:15]} 34. Rc8 {[%emt 0:00:32]} Re5 $1 {[%emt 0:00:52]} 35. Rc7+ {[%emt 0:00:29]} Re7 {[%emt 0:00:01]} 36. Rc5 {[%emt 0:01:28]} Ke8 $1 {[%emt 0:00:07]} 37. Rc4 {[%emt 0:00:45]} Kd8 {[%emt 0:00:58]} 38. Re4 {[%emt 0:00:37]} Rd7 {[%emt 0:00:51]} 39. Ke3 {[%emt 0:00:39] [#] Threatens to win with Rd4.} Kc7 {[%emt 0:01:16]} 40. Re6 {[%emt 0:04:46]} Kd8 {[%emt 0:00:48]} 41. Re4 {[%emt 0:11:20] Black must now prevent Rd4.} Kc7 {[%emt 0:00:16]} 42. Rd4 {[%emt 0:04:31]} Rxd4 {[%emt 0:01:24]} 43. Kxd4 {[%emt 0:00:04] KP-KP} Kc6 {[%emt 0:00:06]} 44. Kc4 {[%emt 0:00:40] b5+ would kill now.} b5+ $1 {[%emt 0:01:32]} 45. Kd4 {[%emt 0:00:04]} Kd6 {[%emt 0:00:05]} 46. Ke4 {[%emt 0:00:04]} Kc6 {[%emt 0:00:05]} 47. Kd4 {[%emt 0:00:02]} Kd6 {[%emt 0:00:07]} 48. Ke4 {[%emt 0:00:21] Weighted Error Value: White=0.06 (flawless) /Black=0.05 (flawless)} 1/2-1/2